{"text_format":"2","workbook":"xlsx","n_sheets":6,"sheets":["Használati utmutató","Tulajdonság - képesség","Szakértlem próbák","Harc","Infók","Tárgykészítés"],"not_rendered":{"charts":0,"images":0,"macros":0,"external_links":0,"defined_names":0,"comments":0,"pivot_tables":0},"unopened":[],"bounds":{"document_bytes":16777216,"sheet_cells":100000,"run_cost":"one","rows_first":2000,"rows_last":500,"rows_between":2000,"halvings":0,"cell_chars":16384,"cell_head_chars":4096},"cells_cut":0,"cells_raw":0,"read":"whole","date_system":"1900"}

{"sheet":"Használati utmutató","index":0,"n_rows":15,"n_cols":1,"rows_kept":15,"cut":false,"hidden":false,"merged":[]}
["Minden lapon a szürkeszínű mezőket változtasd, a többi számolt mező."]
[]
["A tulajdonság képesség lapon kell beállítani az adott képességek alapértékét, és külön lehet a módosítókat is. Azért van így, ha a torony előtt öltözöl akkor talán könnyebb követni. "]
["A középső fölső táblában azt látod, hogy egy adott típusú különböző szintű próba mekkora eséllyel sikerül. Itt hamar látszik, hogy mire kell még gyúrni."]
["A lap közepén a torony adott szintjének sikeres végrehajtására látod az esélyeket. A mellete levő szürke mezőkben a próbálkozások számát megadva azt látod, hogy mekkora eséllyel sikerül"]
["a torony szintje annyi próbálkozásból."]
[]
["A szakértelem próbák fülön ne állíts semmit."]
[]
["A Harc fülön, amelyik szörnyet meg tudod ölni, annak a neve mellé 1-et írj, amit nem oda 0-t."]
[]
["Az infók fülön amelyik szörnyet-tárgyat ismered, oda 1-et, amit nem oda 0-t."]
[]
["A tárgykészítés lapon, amelyik alapanyag maradéktalanul megvan, oda 1-et, ami nincs oda 0-t."]
["Ha van feneketlen bugyrod, akkor a tárgykészítés esélye javul, de ezt a táblázat nem kezeli."]

{"sheet":"Tulajdonság - képesség","index":1,"n_rows":31,"n_cols":17,"rows_kept":31,"cut":false,"hidden":false,"merged":[[0,6,0,8],[7,6,7,8]]}
[null,"Összesen","Bónusz","Alap",null,null,"Szint"]
["csapdaészlelés",{"$f":"C2+D2","v":17},8,9,null,null,1,2,3,{"$nulls":4},"Szakértelem","Harc","Info","Készítés"]
["zárnyitás",{"$f":"C3+D3","v":20},11,9,null,"Szakértelem",{"$f":"'Szakértlem próbák'!E17","v":1},{"$f":"'Szakértlem próbák'!F17","v":0.6875},{"$f":"'Szakértlem próbák'!G17","v":0.25},null,null,null,"1. szint",0.3,0.3,0.2,0.2]
["bányászat",13,null,13,null,"Harc",{"$f":"Harc!B18","v":1},{"$f":"Harc!D18","v":1},{"$f":"Harc!F18","v":0.58823529411764708},null,null,null,"2. szint",0.3,0.3,0.2,0.2]
["mászás",10,null,10,null,"Infó",{"$f":"Infók!B32","v":1},{"$f":"Infók!D35","v":1},{"$f":"Infók!F53","v":1},null,null,null,"3. szint",0.3,0.3,0.2,0.2]
["szerencsejáték",11,9,2,null,"Tárgykészítés",{"$f":"Tárgykészítés!O19","v":0.83333333333333337},{"$f":"Tárgykészítés!Q19","v":1},{"$f":"Tárgykészítés!S19","v":0.94444444444444442},null,null,null,"4. szint",0.35000000000000003,0.3,0.2,0.15]
["szörnyidomítás",7,null,7,{"$nulls":8},"5. szint",0.35000000000000003,0.3,0.2,0.15]
["szörnyismeret",11,null,11,null,null,"Szükséges próbák száma",null,null,"Esély","Fordulók száma",null,"6. szint",0,1,0,0]
["titkosírás",8,null,8,null,"1. szint",{"$f":"($N3*$G$3+$O3*$G$4+$P3*$G$5+$Q3*$G$6)*($N3*$G$3+$O3*$G$4+$P3*$G$5+$Q3*$G$6)*($N3*$H$3+$O3*$H$4+$P3*$H$5+$Q3*$H$6)","v":0.84684027777777793},null,1,{"$f":"1-BINOMDIST(0,I9,G9,0)","v":0.84684027777777793},{"$f":"ROUNDUP(I9/3,0)","v":1},null,"7. szint",1,0,0,0]
["zene",16,3,13,null,"2. szint",{"$f":"($N4*$G$3+$O4*$G$4+$P4*$G$5+$Q4*$G$6)*($N4*$H$3+$O4*$H$4+$P4*$H$5+$Q4*$H$6)*($N4*$H$3+$O4*$H$4+$P4*$H$5+$Q4*$H$6)*($N4*$I$3+$O4*$I$4+$P4*$I$5+$Q4*$I$6)","v":0.50838956014263348},null,3,{"$f":"1-BINOMDIST(0,I10,G10,0)","v":0.88118718352473124},{"$f":"ROUNDUP(I10/3,0)","v":1},null,"8. szint",0.35000000000000003,0.3,0.2,0.15]
["felderítés",15,6,9,null,"3. szint",{"$f":"($N5*$G$3+$O5*$G$4+$P5*$G$5+$Q5*$G$6)*($N5*$H$3+$O5*$H$4+$P5*$H$5+$Q5*$H$6)*($N5*$H$3+$O5*$H$4+$P5*$H$5+$Q5*$H$6)*($N5*$I$3+$O5*$I$4+$P5*$I$5+$Q5*$I$6)*($N5*$I$3+$O5*$I$4+$P5*$I$5+$Q5*$I$6)","v":0.32555207290833016},null,4,0.79308417981551804,2]
["harcművészet",15,null,15,null,"4. szint",{"$f":"($N6*$G$3+$O6*$G$4+$P6*$G$5+$Q6*$G$6)*($N6*$H$3+$O6*$H$4+$P6*$H$5+$Q6*$H$6)*($N6*$H$3+$O6*$H$4+$P6*$H$5+$Q6*$H$6)*($N6*$I$3+$O6*$I$4+$P6*$I$5+$Q6*$I$6)*($N6*$I$3+$O6*$I$4+$P6*$I$5+$Q6*$I$6)*($N6*$I$3+$O6*$I$4+$P6*$I$5+$Q6*$I$6)","v":0.17180354704839171},null,8,0.77865642037561733,3]
["pszi",11,null,11,null,"5. szint",{"$f":"($N7*$H$3+$O7*$H$4+$P7*$H$5+$Q7*$H$6)*($N7*$H$3+$O7*$H$4+$P7*$H$5+$Q7*$H$6)*($N7*$I$3+$O7*$I$4+$P7*$I$5+$Q7*$I$6)*($N7*$I$3+$O7*$I$4+$P7*$I$5+$Q7*$I$6)*($N7*$I$3+$O7*$I$4+$P7*$I$5+$Q7*$I$6)*($N7*$I$3+$O7*$I$4+$P7*$I$5+$Q7*$I$6)*B19","v":9.6046734107822634E-2},null,14,0.75675512750006635,5]
["vadászat",11,null,11,null,"6. szint",{"$f":"G4*G4*H4*H4*I4*I4","v":0.34602076124567477},null,4,0.8170822521006289,2]
["gyógyítás",39,null,39,null,"7. szint",{"$f":"G3*G3*H3*H3*I3*I3","v":2.9541015625E-2},null,48,0.76291456137487357,16]
["lopás",17,16,1,null,"8. szint",{"$f":"($N10*$G$3+$O10*$G$4+$P10*$G$5+$Q10*$G$6)*($N10*$G$3+$O10*$G$4+$P10*$G$5+$Q10*$G$6)*($N10*$G$3+$O10*$G$4+$P10*$G$5+$Q10*$G$6)*($N10*$H$3+$O10*$H$4+$P10*$H$5+$Q10*$H$6)*($N10*$H$3+$O10*$H$4+$P10*$H$5+$Q10*$H$6)*($N10*$H$3+$O10*$H$4+$P10*$H$5+$Q10*$H$6)*($N10*$I$3+$O10*$I$4+$P10*$I$5+$Q10*$I$6)*($N10*$I$3+$O10*$I$4+$P10*$I$5+$Q10*$I$6)*($N10*$I$3+$O10*$I$4+$P10*$I$5+$Q10*$I$6)","v":0.14545754021928145},null,9,0.75700193347592792,3]
["rejtőzködés",15,3,12]
[]
["Massza ölés esélye",0.9]
[]
["gyémántsisak (#467) ","+3 felderítés, +3 csapdaészlelés"]
["ryuku vadászing (#1158)","+2 vadászat, +2 szörnyismeret"]
["Fairlight köpenye (#303)","+3 felderítés"]
["merénylő köpenye (#1728)","+5 rejtőzködés"]
["tolvajkesztyű (#1730) ","+8 lopás, +2 csapdaészlelés, +8 zárnyitás"]
["hoarián saru (#1346) ","+5 lopás"]
["muzsikus füles (#1657)","+3 zene"]
["szerencsetalizmán (#366) ","+4 szerencsejáték"]
["Lucius szerencsepénze (#1759)","+5 szerencsejáték"]
["láthatalanság (#76)","+5 lopás"]
["tolvajvér (#364)","+3 lopás, +3 csapdaészlelés, +3 zárnyitás, +3 rejtőzködés"]

{"sheet":"Szakértlem próbák","index":2,"n_rows":17,"n_cols":7,"rows_kept":17,"cut":false,"hidden":false,"merged":[]}
["csapdaészlelés",3,5,11,{"$f":"IF(B1<='Tulajdonság - képesség'!$B2,1,0)","v":1},{"$f":"IF(C1<='Tulajdonság - képesség'!$B2,1,0)","v":1},{"$f":"IF(D1<='Tulajdonság - képesség'!$B2,1,0)","v":1}]
["zárnyitás",3,5,11,{"$f":"IF(B2<='Tulajdonság - képesség'!$B3,1,0)","v":1},{"$f":"IF(C2<='Tulajdonság - képesség'!$B3,1,0)","v":1},{"$f":"IF(D2<='Tulajdonság - képesség'!$B3,1,0)","v":1}]
["bányászat",4,8,14,{"$f":"IF(B3<='Tulajdonság - képesség'!$B4,1,0)","v":1},{"$f":"IF(C3<='Tulajdonság - képesség'!$B4,1,0)","v":1},{"$f":"IF(D3<='Tulajdonság - képesség'!$B4,1,0)","v":0}]
["mászás",4,8,14,{"$f":"IF(B4<='Tulajdonság - képesség'!$B5,1,0)","v":1},{"$f":"IF(C4<='Tulajdonság - képesség'!$B5,1,0)","v":1},{"$f":"IF(D4<='Tulajdonság - képesség'!$B5,1,0)","v":0}]
["szerencsejáték",4,8,14,{"$f":"IF(B5<='Tulajdonság - képesség'!$B6,1,0)","v":1},{"$f":"IF(C5<='Tulajdonság - képesség'!$B6,1,0)","v":1},{"$f":"IF(D5<='Tulajdonság - képesség'!$B6,1,0)","v":0}]
["szörnyidomítás",4,8,14,{"$f":"IF(B6<='Tulajdonság - képesség'!$B7,1,0)","v":1},{"$f":"IF(C6<='Tulajdonság - képesség'!$B7,1,0)","v":0},{"$f":"IF(D6<='Tulajdonság - képesség'!$B7,1,0)","v":0}]
["szörnyismeret",4,8,14,{"$f":"IF(B7<='Tulajdonság - képesség'!$B8,1,0)","v":1},{"$f":"IF(C7<='Tulajdonság - képesség'!$B8,1,0)","v":1},{"$f":"IF(D7<='Tulajdonság - képesség'!$B8,1,0)","v":0}]
["titkosírás",4,8,14,{"$f":"IF(B8<='Tulajdonság - képesség'!$B9,1,0)","v":1},{"$f":"IF(C8<='Tulajdonság - képesség'!$B9,1,0)","v":1},{"$f":"IF(D8<='Tulajdonság - képesség'!$B9,1,0)","v":0}]
["zene",4,8,14,{"$f":"IF(B9<='Tulajdonság - képesség'!$B10,1,0)","v":1},{"$f":"IF(C9<='Tulajdonság - képesség'!$B10,1,0)","v":1},{"$f":"IF(D9<='Tulajdonság - képesség'!$B10,1,0)","v":1}]
["felderítés",9,14,24,{"$f":"IF(B10<='Tulajdonság - képesség'!$B11,1,0)","v":1},{"$f":"IF(C10<='Tulajdonság - képesség'!$B11,1,0)","v":1},{"$f":"IF(D10<='Tulajdonság - képesség'!$B11,1,0)","v":0}]
["harcművészet",9,14,24,{"$f":"IF(B11<='Tulajdonság - képesség'!$B12,1,0)","v":1},{"$f":"IF(C11<='Tulajdonság - képesség'!$B12,1,0)","v":1},{"$f":"IF(D11<='Tulajdonság - képesség'!$B12,1,0)","v":0}]
["pszi",9,14,24,{"$f":"IF(B12<='Tulajdonság - képesség'!$B13,1,0)","v":1},{"$f":"IF(C12<='Tulajdonság - képesség'!$B13,1,0)","v":0},{"$f":"IF(D12<='Tulajdonság - képesség'!$B13,1,0)","v":0}]
["vadászat",9,14,24,{"$f":"IF(B13<='Tulajdonság - képesség'!$B14,1,0)","v":1},{"$f":"IF(C13<='Tulajdonság - képesség'!$B14,1,0)","v":0},{"$f":"IF(D13<='Tulajdonság - képesség'!$B14,1,0)","v":0}]
["gyógyítás",10,20,30,{"$f":"IF(B14<='Tulajdonság - képesség'!$B15,1,0)","v":1},{"$f":"IF(C14<='Tulajdonság - képesség'!$B15,1,0)","v":1},{"$f":"IF(D14<='Tulajdonság - képesség'!$B15,1,0)","v":1}]
["lopás",10,20,30,{"$f":"IF(B15<='Tulajdonság - képesség'!$B16,1,0)","v":1},{"$f":"IF(C15<='Tulajdonság - képesség'!$B16,1,0)","v":0},{"$f":"IF(D15<='Tulajdonság - képesség'!$B16,1,0)","v":0}]
["rejtőzködés",10,20,30,{"$f":"IF(B16<='Tulajdonság - képesség'!$B17,1,0)","v":1},{"$f":"IF(C16<='Tulajdonság - képesség'!$B17,1,0)","v":0},{"$f":"IF(D16<='Tulajdonság - képesség'!$B17,1,0)","v":0}]
[{"$nulls":4},{"$f":"SUM(E1:E16)/COUNTA($A$1:$A$16)","v":1},{"$f":"SUM(F1:F16)/COUNTA($A$1:$A$16)","v":0.6875},0.25]

{"sheet":"Harc","index":3,"n_rows":18,"n_cols":6,"rows_kept":18,"cut":false,"hidden":false,"merged":[]}
["áeratikus hasnyák",1,"aurapollátor",1,"éjkornis",1]
["agyagelementál",1,"bávatag golombár",1,"gránitelementál",1]
["arató csattanat",1,"borzalmas varkaudar",1,"hordóagyú mameluk",1]
["autentikus vámpír",1,"ezoterikus mardel",1,"káoszteknőc"]
["csontváz lord",1,"ekharion",1,"kputtyintó csalán"]
["dehidrátor",1,"halálosztó kain",1,"kultúrmasztodon",1]
["élőholt quwarg",1,"jégtroll",1,"mnebolath",1]
["élőholt sullár",1,"noth szellem",1,"nanda",1]
["epokitféreg",1,"óriásféreg",1,"norpadolótika",1]
["kardfogú fülemüle",1,"quwarg nagymester",1,"ongóliant"]
["orgoró",1,"quwarg parafenomén",1,"Orkhan Thai",1]
["quwarg királynő",1,"szubreális vámpír",1,"orbitális mackósajt"]
["részeg kalandozó",1,"szutykos remák",1,"őrült varázsló",1]
["tüskés harci gromak",1,"Tguarkhan",1,"tüskés gigaféreg"]
["vark. nekromanta",1,"vadász quwarg",1,"tyrannoszaurusz rex"]
["varkaudar behemót",1,"velociraptor",1,"woorgard"]
["Zinthurg",1,"zombi mester",1,"zoloboo sámán",1]
[null,{"$f":"SUM(B1:B17)/COUNTA($A$1:$A$17)","v":1},null,{"$f":"SUM(D1:D17)/COUNTA($C$1:$C$17)","v":1},null,{"$f":"SUM(F1:F17)/COUNTA($E$1:$E$17)","v":0.58823529411764708}]

{"sheet":"Infók","index":4,"n_rows":53,"n_cols":6,"rows_kept":53,"cut":false,"hidden":false,"merged":[]}
["agyartőr",1,"agyagelementál",1,"acélkolosszus",1]
["árnyékrája",1,"árnyéksár",1,"áeratikus hasnyák",1]
["bájital",1,"bazaltelementál",1,"alanori csatamén",1]
["bundás csirmáz",1,"cápaölő tőr",1,"Chara-din fattya",1]
["büntető praglonc",1,"degradátor",1,"Dantor amulettje",1]
["díszes rézpajzs",1,"diuretikus kráken",1,"dizen kulcs",1]
["élőholt mirg",1,"drónkeselyű",1,"diuretikus kráken",1]
["era formázó minta",1,"élőholt sullár",1,"drakolder szem",1]
["fekete griff",1,"esszenciakristály",1,"élőholt ősmágus",1]
["fpi formázó minta",1,"Fekete Kehely",1,"élőholt sullár",1]
["goblin",1,"fekete tű",1,"északi tűzsárkány",1]
["griffőniksz",1,"gránitelementál",1,"görgőte",1]
["gyöngysor",1,"joviális m.szockó",1,"gránit őrszobor",1]
["halcsont",1,"kacagó szépia",1,"hegyi góliát",1]
["hamupók",1,"kdole",1,"hordóagyú mameluk",1]
["koponya szimbólum",1,"kisebb quwarg isten",1,"káoszteknőc",1]
["kígyóbőr öv",1,"kneopatikus mollusk",1,"kputtyintó csalán",1]
["lebegő gomba",1,"ködcsillag",1,"krapixlon fürdőruha",1]
["manó",1,"ködmangó",1,"lidércúr",1]
["mirg",1,"lovagi tabard",1,"Luthius karkötője",1]
["moa zafír",1,"Mágikus Koponya",1,"manakristály",1]
["óriásféreg",1,"Morbid",1,"Mnebolath",1]
["ovimon-bogyó",1,"Muezli aranykeze",1,"Morbid",1]
["púderkő",1,"ónix masszavadító",1,"nagyobb vércápa",1]
["quwarg tojás",1,"piranha zsákvédő",1,"nanda",1]
["regeneráló gyűrű",1,"quwarg nagymester",1,"natali kő",1]
["sötét motyogó",1,"smaragd kulcs",1,"norgat kulcs",1]
["szem szimbólum",1,"Szent Kulacs",1,"noth szellem",1]
["trófea nyaklánc",1,"taposó tappancs",1,"Orkhan Thai",1]
["villám szimbólum",1,"teknőcpajzs",1,"őrült varázsló",1]
["virág szimbólum",1,"Tguarkhan",1,"plazmacsillag",1]
[null,{"$f":"SUM(B1:B31)/COUNTA($A$1:$A$31)","v":1},"törpe bakancs",1,"pöfögő kregon",1]
[null,null,"tűzfőnix",1,"pordémon",1]
[null,null,"velociraptor",1,"praglonc hártya",1]
[null,null,null,{"$f":"SUM(D1:D34)/COUNTA($C$1:$C$34)","v":1},"Pusztítás Botja",1]
["  ",null,"  ",null,"quwarg parafenomén",1]
[{"$nulls":4},"qwarg rohamosztagos",1]
[{"$nulls":4},"Raia pallosa",1]
["  ",null,"  ",null,"Raia szent lovagja",1]
[{"$nulls":4},"Rughar familiárisa",1]
[{"$nulls":4},"sárkánypikkely",1]
["  ",null,"  ",null,"Sheran főzete",1]
[{"$nulls":4},"sivatagi doareg",1]
[{"$nulls":4},"Szent Pöröly",1]
[{"$nulls":4},"szubreális vámpír",1]
[{"$nulls":4},"taalru",1]
[{"$nulls":4},"tüskés gigaféreg",1]
[{"$nulls":4},"Urgod kesztyűje",1]
[{"$nulls":4},"vadász quwarg",1]
[{"$nulls":4},"velociraptor",1]
[{"$nulls":4},"vérvörös köpeny",1]
[{"$nulls":4},"zombi mester",1]
[{"$nulls":5},{"$f":"SUM(F1:F52)/COUNTA($E$1:$E$52)","v":1}]

{"sheet":"Tárgykészítés","index":5,"n_rows":62,"n_cols":19,"rows_kept":62,"cut":false,"hidden":false,"merged":[]}
[1,"vizestömlő",1,{"$f":"COUNTA(E1:M1)","v":1},"víz",{"$nulls":8},"ásó",{"$f":"C2*C13*C15","v":0},"bogyógránát",{"$f":"C38*C60","v":1},"bányászcsákány",{"$f":"C2*C36*C37","v":1}]
[1,"bot",1,6,"ásó","dárda"," kőhegyű lándzsa"," bányászcsákány"," csontszurony"," ezüsthegyű lándzsa",null,null,null,"bronzpenge",{"$f":"C6*C22*C26","v":1},"bronz fejpánt",{"$f":"C26*C22*C18","v":1},"bronzpajzs",{"$f":"C22*C26","v":1}]
[1,"kőkés",1,1,"kőhegyű lándzsa",{"$nulls":8},"dárda",{"$f":"C2*C3","v":1},"bumeráng",{"$f":"C13*C52","v":1},"bronzsisak",{"$f":"C22*C26","v":1}]
[1,"csontkés",1,1,"csontszurony",{"$nulls":8},"dobóháló",{"$f":"C27","v":1},"ezüsthegyű nyíl",{"$f":"C33*C56","v":1},"csontszurony",{"$f":"C23*C27","v":1}]
[5,"süntüske",1,1,"tüskecsapda",{"$nulls":8},"furulya",{"$f":"C7*C49*C13","v":1},"ezüstshuriken",{"$f":"C56","v":1},"dorony duda",{"$f":"C48*C50*C25","v":1}]
[3,"tatubőr",1,4,"bronzpenge"," tatu dob"," vas fejpánt"," tatu ködmön",{"$nulls":5},"kőhegyű lándzsa",{"$f":"C2*C3","v":1},"ezüsttőr",{"$f":"C56","v":1},"ezüsthegyű lándzsa",{"$f":"C2*C56","v":1}]
[2,"ormánygőte csont",1,2,"furulya"," távcső",{"$nulls":7},"mérg. vas dobónyíl",{"$f":"C43*C38","v":1},"harci kalapács",{"$f":"C36*C37","v":1},"ezüst kard",{"$f":"C56","v":1}]
[1,"tüske",1,1,"mérgezett tüske",{"$nulls":8},"mérg. vasnyil",{"$f":"C42*C38","v":1},"kígyóbőr kesztyű",{"$f":"C18","v":1},"gromak páncél",{"$f":"C41*C45*C53","v":1}]
[1,"kavadu lebeny",1,1,"pukkanó tűcsapda",{"$nulls":8},"mérg. ubuk dobónyíl",{"$f":"C11*C35","v":0},"királyi korona",{"$f":"C19*C28","v":1},"hosszú íj",{"$f":"C29*C31","v":1}]
[1,"kavadu iszák",0,2,"gyenge méreg"," mérgezett tüske",{"$nulls":7},"mérgezett tüske",{"$f":"C8*C11","v":0},"mászókampó",{"$f":"C27*C36*C37","v":1},"kdole",{"$f":"C54*C51*C47*C46","v":1}]
[1,"gyenge méreg",0,2,"mérg. ubuk dobónyíl"," mérgezett tüske",{"$nulls":7},"nyílvessző",{"$f":"C33","v":1},"pukkanó tűcsapda",{"$f":"C9*C33*C57*C38","v":1},"lótuszfőzet",{"$f":"C21*C12*C61","v":1}]
[5,"víz",1,1,"lótuszfőzet",{"$nulls":8},"rézpajzs",{"$f":"C22","v":1},"rövid íj",{"$f":"C13*C29","v":1},"nyu-shuriken",{"$f":"C34*C25*C23","v":1}]
[3,"smirglilevél",1,5,"ásó"," furulya"," bumeráng"," rövid íj"," távcső",{"$nulls":4},"rézsisak",{"$f":"C22","v":1},"tatu ködmön",{"$f":"C6","v":1},"rájabőr úszógatya",{"$f":"C58","v":1}]
[4,"varányszem",1,1,"távcső",{"$nulls":8},"sallank nyíl",{"$f":"C34*C32*C25*C33","v":1},"tolmokov-koktél",{"$f":"C24*C41","v":1},"raptor szablya",{"$f":"C30*C55*C27","v":1}]
[1,"lapockacsont",0,1,"ásó",{"$nulls":8},"stuki lövedék",{"$f":"C22","v":1},"tüskecsapda",{"$f":"C23*C5","v":1},"távcső",{"$f":"C17*C7*C13*C14","v":1}]
[10,"drótszőr",1,1,"zárnyitó készlet",{"$nulls":8},"tatu dob",{"$f":"C6*C44","v":1},"vas dobónyíl",{"$f":"C36*C37*C33","v":1},"teknőcpajzs",{"$f":"C59","v":0}]
[1,"grákóbőr",1,1,"távcső",{"$nulls":8},"vas fejpánt",{"$f":"C6*C36*C37","v":1},"vashegyű lándzsa",{"$f":"C36*C37*C30","v":1},"rézpáncél",{"$f":"C20*C22","v":1}]
[2,"surranókígyó bőr",1,2,"bronz fejpánt"," kígyóbőr kesztyű",{"$nulls":7},"zárnyitó készlet",{"$f":"C16","v":1},"vashegyű nyíl",{"$f":"C36*C37*C33","v":1},"szuper dobóháló",{"$f":"C45","v":1}]
[250,"aranypénz",1,{"$f":"COUNTA(E19:N19)","v":1},"királyi korona",{"$nulls":9},{"$f":"SUM(O1:O18)/COUNTA(N1:N18)","v":0.83333333333333337},null,{"$f":"SUM(Q1:Q18)/COUNTA(P1:P18)","v":1},null,{"$f":"SUM(S1:S18)/COUNTA(R1:R18)","v":0.94444444444444442}]
[1,"bőrpáncél",1,1,"rézpáncél"]
[1,"mákrózsa",1,1,"lótuszfőzet"]
[8,"rézdarab",1,8,"bronzpenge"," rézpajzs"," rézsisak"," stukilövedék"," bronz fejpánt"," bronzpajzs"," bronzsisak"," rézpáncél"]
[1,"lapkorong",1,2,"tüskecsapda"," nyu-shuriken"]
[1,"zöld üveg",1,2,"ragasztó"," tolmokov-koktél"]
[3,"ragasztó",1,3,"sallank nyíl"," dorony duda"," nyu-shuriken"]
[3,"óndarab",1,4,"bronzpenge"," bronz fejpánt"," bronzpajzs"," bronzsisak"]
[4,"kötél",1,3,"dobóháló","mászókampó","raptor szablya"]
[12,"fekete gyöngy",1,1,"királyi korona"]
[1,"magszimbél",1,2,"rövid íj"," hosszú íj"]
[1,"fémrúd",1,2,"vashegyű lándzsa"," raptor szablya"]
[1,"vapárág",1,1,"hosszú íj"]
[1,"hosszú íj",1,1,"sallank nyíl"]
[1,"madártoll",1,6,"nyílvessző"," sallank nyíl"," ezüsthegyű nyíl"," pukkanó tűcsapda"," vas dobónyíl"," vashegyű nyíl"]
[3,"sallank karom",1,2,"sallank nyíl"," nyu-shuriken"]
[1,"ubuk dobónyíl",1,1,"mérg. ubuk dobónyíl"]
[7,"vasérc",1,7,"vas fejpánt"," harci kalapács"," mászókampó"," vas dobónyíl"," vashegyű lándzsa"," vashegyű nyíl"," bányászcsákány"]
[14,"pirkit",1,7,"vas fejpánt"," harci kalapács"," mászókampó"," vas dobónyíl"," vashegyű lándzsa"," vashegyű nyíl"," bányászcsákány"]
[3,"ugh méreg",1,4,"mérg. vas dobónyíl"," mérg. vasnyil"," bogyógránát"," pukkanó tűcsapda"]
[1,"sullár hólyag",1,1,"spiritusz"]
[1,"uzbány csőr",1,1,"ugh méreg"]
[10,"spiritusz",1,2,"tolmokov-koktél"," gromak páncél"]
[1,"vashegyű nyíl",1,1,"mérg. vasnyil"]
[1,"vas dobónyíl",1,1,"mérg. vas dobónyíl"]
[1,"amniosz",1,1,"tatu dob"]
[2,"szuperkötél",1,2,"gromak páncél"," szuper dobóháló"]
[1,"fűszertartó",1,1,"kdole"]
[4,"sáfránypor",1,1,"kdole"]
[1,"doronytüdő",1,1,"dorony duda"]
[1,"acélpengőke",1,1,"furulya"]
[3,"furulya",1,1,"dorony duda"]
[1,"tatudob",1,1,"kdole"]
[1,"lajhárcsont",1,1,"bumeráng"]
[2,"gromak bőr",1,1,"gromak páncél"]
[1,"tyrex csont",1,1,"kdole"]
[1,"raptor karom",1,1,"raptor szablya"]
[6,"ezüstdarab",1,5,"ezüsthegyű nyíl"," ezüstshuriken"," ezüsttőr"," ezüsthegyű lándzsa"," ezüstkard"]
[1,"acéltű",1,1,"pukkanó tűcsapda"]
[6,"rájabőr",1,1,"rájabőr úszógatya"]
[1,"teknőcteknő",0,1,"teknőcpajzs"]
[1,"kaktuszbogyó",1,1,"bogyógránát"]
[1,"lótuszvirág",1,1,"lótuszfőzet"]
[null,null,null,{"$f":"SUMIF(C1:C61,\"=1\",D1:D61)/SUM(D1:D61)","v":0.95081967213114749}]